[Event "Titled Tuesday Blitz March 22 Early 2022"]
[White "Hakobyan, Aram"]
[Black "Timofeev, Artyom"]
[WhiteFideId "13306677"]
[BlackFideId "4140419"]
[WhiteElo "2557"]
[BlackElo "2594"]
[Result "1-0"]
[Round "06"]
[TimeControl "180+1"]
[Date "2022.03.22"]
[WhiteClock "0:00:26"]
[BlackClock "0:00:16"]

1. d4 {[%clk 0:03:00]}  d5 {[%clk 0:02:59]} 2. Nf3 {[%clk 0:03:01]}  Nf6 {[%clk 0:02:59]} 3. c3 {[%clk 0:03:02]}  g6 {[%clk 0:02:57]} 4. Bf4 {[%clk 0:03:01]}  Bg7 {[%clk 0:02:58]} 5. e3 {[%clk 0:03:02]}  O-O {[%clk 0:02:57]} 6. Nbd2 {[%clk 0:03:02]}  b6 {[%clk 0:02:55]} 7. h4 {[%clk 0:03:02]}  Bg4 {[%clk 0:02:51]} 8. Be2 {[%clk 0:03:01]}  Nbd7 {[%clk 0:02:50]} 9. Ne5 {[%clk 0:02:59]}  Bxe2 {[%clk 0:02:50]} 10. Qxe2 {[%clk 0:02:59]}  c5 {[%clk 0:02:46]} 11. g4 {[%clk 0:02:43]}  h5 {[%clk 0:02:21]} 12. f3 {[%clk 0:02:17]}  hxg4 {[%clk 0:01:59]} 13. fxg4 {[%clk 0:02:17]}  Nxe5 {[%clk 0:02:00]} 14. Bxe5 {[%clk 0:02:15]}  Ne4 {[%clk 0:01:57]} 15. Bxg7 {[%clk 0:02:10]}  Kxg7 {[%clk 0:01:57]} 16. Nxe4 {[%clk 0:02:10]}  dxe4 {[%clk 0:01:57]} 17. O-O-O {[%clk 0:02:11]}  Qd5 {[%clk 0:01:54]} 18. Kb1 {[%clk 0:02:07]}  Rad8 {[%clk 0:01:45]} 19. h5 {[%clk 0:02:07]}  g5 {[%clk 0:01:45]} 20. Qf2 {[%clk 0:02:07]}  cxd4 {[%clk 0:01:39]} 21. exd4 {[%clk 0:01:58]}  f5 {[%clk 0:01:27]} 22. gxf5 {[%clk 0:01:53]}  Rxf5 {[%clk 0:01:27]} 23. Qe2 {[%clk 0:01:53]}  Rdf8 {[%clk 0:01:24]} 24. Rde1 {[%clk 0:01:23]}  Rf4 {[%clk 0:01:23]} 25. Rhg1 {[%clk 0:01:24]}  Kh6 {[%clk 0:01:21]} 26. Rg2 {[%clk 0:01:10]}  Qf5 {[%clk 0:01:12]} 27. a3 {[%clk 0:01:05]}  e3+ {[%clk 0:01:04]} 28. Qc2 {[%clk 0:01:03]}  Qxc2+ {[%clk 0:01:02]} 29. Rxc2 {[%clk 0:01:04]}  Re4 {[%clk 0:01:00]} 30. Rce2 {[%clk 0:01:01]}  Kxh5 {[%clk 0:00:58]} 31. Kc2 {[%clk 0:00:57]}  Rf2 {[%clk 0:00:50]} 32. Kd3 {[%clk 0:00:58]}  Rxe2 {[%clk 0:00:50]} 33. Rxe2 {[%clk 0:00:54]}  Re6 {[%clk 0:00:47]} 34. d5 {[%clk 0:00:50]}  Rd6 {[%clk 0:00:47]} 35. Ke4 {[%clk 0:00:50]}  e6 {[%clk 0:00:47]} 36. c4 {[%clk 0:00:49]}  exd5+ {[%clk 0:00:47]} 37. cxd5 {[%clk 0:00:49]}  g4 {[%clk 0:00:47]} 38. Rxe3 {[%clk 0:00:41]}  Kh4 {[%clk 0:00:44]} 39. Ke5 {[%clk 0:00:41]}  Rd8 {[%clk 0:00:44]} 40. d6 {[%clk 0:00:33]}  g3 {[%clk 0:00:40]} 41. Kd5 {[%clk 0:00:34]}  g2 {[%clk 0:00:39]} 42. Re1 {[%clk 0:00:34]}  Kg3 {[%clk 0:00:34]} 43. Kc6 {[%clk 0:00:34]}  Kf2 {[%clk 0:00:30]} 44. Rd1 {[%clk 0:00:33]}  g1=Q {[%clk 0:00:25]} 45. Rxg1 {[%clk 0:00:33]}  Kxg1 {[%clk 0:00:26]} 46. Kc7 {[%clk 0:00:34]}  Rg8 {[%clk 0:00:25]} 47. d7 {[%clk 0:00:34]}  Kf2 {[%clk 0:00:23]} 48. d8=Q {[%clk 0:00:35]}  Rxd8 {[%clk 0:00:23]} 49. Kxd8 {[%clk 0:00:35]}  Ke3 {[%clk 0:00:23]} 50. Kc7 {[%clk 0:00:35]}  Kd2 {[%clk 0:00:24]} 51. Kb7 {[%clk 0:00:31]}  Kc2 {[%clk 0:00:24]} 52. b4 {[%clk 0:00:27]}  Kb3 {[%clk 0:00:17]} 53. Kxa7 {[%clk 0:00:25]}  b5 {[%clk 0:00:16]} 54. Kb6 {[%clk 0:00:25]}  Ka4 {[%clk 0:00:16]} 55. Kc5 {[%clk 0:00:25]}  Kxa3 {[%clk 0:00:16]} 56. Kxb5 {[%clk 0:00:26]} 1-0


[Site "https://www.chess.com"]

[Event "Titled Tuesday Blitz March 22 Early 2022"]
[White "Hamitevici, Vladimir"]
[Black "Pesotskiy, Mikhail"]
[WhiteFideId "13902393"]
[BlackFideId "34164453"]
[WhiteElo "2359"]
[BlackElo "2010"]
[Result "1-0"]
[Round "06"]
[TimeControl "180+1"]
[Date "2022.03.22"]
[WhiteClock "0:00:52"]
[BlackClock "0:01:07"]

1. a3 {[%clk 0:02:59]}  Nf6 {[%clk 0:02:57]} 2. c4 {[%clk 0:02:57]}  e6 {[%clk 0:02:52]} 3. Nf3 {[%clk 0:02:52]}  c5 {[%clk 0:02:51]} 4. e3 {[%clk 0:02:46]}  b6 {[%clk 0:02:51]} 5. Nc3 {[%clk 0:02:45]}  Bb7 {[%clk 0:02:51]} 6. d4 {[%clk 0:02:42]}  cxd4 {[%clk 0:02:52]} 7. exd4 {[%clk 0:02:42]}  d5 {[%clk 0:02:50]} 8. cxd5 {[%clk 0:02:41]}  Nxd5 {[%clk 0:02:51]} 9. Bb5+ {[%clk 0:02:35]}  Nc6 {[%clk 0:02:52]} 10. Ne5 {[%clk 0:02:33]}  Rc8 {[%clk 0:02:52]} 11. Qa4 {[%clk 0:02:31]}  Qc7 {[%clk 0:02:48]} 12. Nxd5 {[%clk 0:02:17]}  exd5 {[%clk 0:02:48]} 13. Qxa7 {[%clk 0:01:57]}  Bd6 {[%clk 0:02:49]} 14. Bxc6+ {[%clk 0:01:40]}  Bxc6 {[%clk 0:02:49]} 15. Qxc7 {[%clk 0:01:40]}  Rxc7 {[%clk 0:02:49]} 16. Nxc6 {[%clk 0:01:33]}  Rxc6 {[%clk 0:02:50]} 17. Kd1 {[%clk 0:01:30]}  Kd7 {[%clk 0:02:51]} 18. Bd2 {[%clk 0:01:24]}  b5 {[%clk 0:02:46]} 19. Rc1 {[%clk 0:01:22]}  Rc4 {[%clk 0:02:46]} 20. Rxc4 {[%clk 0:01:21]}  dxc4 {[%clk 0:02:47]} 21. Re1 {[%clk 0:01:17]}  Kc6 {[%clk 0:02:46]} 22. Kc2 {[%clk 0:01:09]}  Kd5 {[%clk 0:02:46]} 23. Bb4 {[%clk 0:01:10]}  Bxb4 {[%clk 0:02:15]} 24. axb4 {[%clk 0:01:11]}  Kxd4 {[%clk 0:02:16]} 25. Re7 {[%clk 0:01:11]}  Rf8 {[%clk 0:01:56]} 26. Rd7+ {[%clk 0:01:11]}  Ke4 {[%clk 0:01:56]} 27. Rb7 {[%clk 0:01:12]}  g6 {[%clk 0:01:44]} 28. Rxb5 {[%clk 0:01:10]}  Kd4 {[%clk 0:01:26]} 29. Rb7 {[%clk 0:01:10]}  h5 {[%clk 0:01:26]} 30. Rd7+ {[%clk 0:01:08]}  Ke4 {[%clk 0:01:25]} 31. Kc3 {[%clk 0:01:07]}  f5 {[%clk 0:01:20]} 32. b5 {[%clk 0:01:06]}  h4 {[%clk 0:01:16]} 33. Rd4+ {[%clk 0:01:00]}  Ke5 {[%clk 0:01:13]} 34. Rxc4 {[%clk 0:00:59]}  h3 {[%clk 0:01:13]} 35. gxh3 {[%clk 0:00:57]}  Rd8 {[%clk 0:01:08]} 36. b6 {[%clk 0:00:54]}  Rb8 {[%clk 0:01:07]} 37. Rb4 {[%clk 0:00:52]} 1-0


[Site "https://www.chess.com"]

[Event "Titled Tuesday Blitz March 22 Early 2022"]
[White "Hirneise, Jens"]
[Black "Golubev, Mikhail"]
[WhiteFideId "24614734"]
[BlackFideId "14100983"]
[WhiteElo "2359"]
[BlackElo "2374"]
[Result "0-1"]
[Round "06"]
[TimeControl "180+1"]
[Date "2022.03.22"]
[WhiteClock "0:00:08"]
[BlackClock "0:00:31"]

1. c4 {[%clk 0:02:49]}  g6 {[%clk 0:02:59]} 2. Nc3 {[%clk 0:02:50]}  Bg7 {[%clk 0:03:00]} 3. g3 {[%clk 0:02:49]}  e5 {[%clk 0:02:59]} 4. Bg2 {[%clk 0:02:50]}  d6 {[%clk 0:02:59]} 5. d3 {[%clk 0:02:50]}  Nc6 {[%clk 0:02:59]} 6. Rb1 {[%clk 0:02:49]}  f5 {[%clk 0:02:56]} 7. e3 {[%clk 0:02:43]}  Nf6 {[%clk 0:02:44]} 8. Nge2 {[%clk 0:02:44]}  a5 {[%clk 0:02:41]} 9. a3 {[%clk 0:02:41]}  O-O {[%clk 0:02:41]} 10. h3 {[%clk 0:02:36]}  Ne7 {[%clk 0:02:35]} 11. b4 {[%clk 0:02:33]}  axb4 {[%clk 0:02:34]} 12. axb4 {[%clk 0:02:33]}  c6 {[%clk 0:02:34]} 13. b5 {[%clk 0:02:32]}  Be6 {[%clk 0:02:33]} 14. O-O {[%clk 0:02:25]}  g5 {[%clk 0:02:00]} 15. bxc6 {[%clk 0:02:08]}  bxc6 {[%clk 0:02:01]} 16. Bb2 {[%clk 0:01:57]}  h5 {[%clk 0:01:48]} 17. f4 {[%clk 0:01:36]}  gxf4 {[%clk 0:01:48]} 18. gxf4 {[%clk 0:01:34]}  Rb8 {[%clk 0:01:05]} 19. Na4 {[%clk 0:01:28]}  e4 {[%clk 0:01:01]} 20. dxe4 {[%clk 0:01:24]}  fxe4 {[%clk 0:00:55]} 21. Bxf6 {[%clk 0:01:18]}  Bxf6 {[%clk 0:00:54]} 22. Bxe4 {[%clk 0:01:16]}  Bxh3 {[%clk 0:00:50]} 23. Rf2 {[%clk 0:00:53]}  Rf7 {[%clk 0:00:50]} 24. Kh1 {[%clk 0:00:51]}  Rg7 {[%clk 0:00:46]} 25. Rh2 {[%clk 0:00:46]}  Bg4 {[%clk 0:00:45]} 26. c5 {[%clk 0:00:25]}  d5 {[%clk 0:00:37]} 27. Rxb8 {[%clk 0:00:23]}  Qxb8 {[%clk 0:00:38]} 28. Bg2 {[%clk 0:00:22]}  Qb4 {[%clk 0:00:33]} 29. e4 {[%clk 0:00:08]}  dxe4 {[%clk 0:00:31]} 0-1


[Site "https://www.chess.com"]

[Event "Titled Tuesday Blitz March 22 Early 2022"]
[White "Hoeffer, David"]
[Black "Chen, Qi b"]
[WhiteFideId "24606766"]
[BlackFideId "8614733"]
[WhiteElo "2301"]
[BlackElo "2432"]
[Result "1-0"]
[Round "06"]
[TimeControl "180+1"]
[Date "2022.03.22"]
[WhiteClock "0:00:17"]
[BlackClock "0:00:02"]

1. e4 {[%clk 0:02:59]}  e5 {[%clk 0:02:59]} 2. Nf3 {[%clk 0:02:59]}  Nc6 {[%clk 0:02:59]} 3. Bb5 {[%clk 0:03:00]}  a6 {[%clk 0:02:55]} 4. Ba4 {[%clk 0:03:00]}  Nf6 {[%clk 0:02:55]} 5. O-O {[%clk 0:03:00]}  Bc5 {[%clk 0:02:55]} 6. c3 {[%clk 0:02:53]}  b5 {[%clk 0:02:55]} 7. Bc2 {[%clk 0:02:53]}  d5 {[%clk 0:02:54]} 8. d4 {[%clk 0:02:52]}  dxe4 {[%clk 0:02:48]} 9. dxe5 {[%clk 0:02:30]}  Qxd1 {[%clk 0:02:30]} 10. Rxd1 {[%clk 0:02:31]}  exf3 {[%clk 0:01:12]} 11. exf6 {[%clk 0:02:30]}  gxf6 {[%clk 0:01:12]} 12. Be4 {[%clk 0:02:20]}  Bb7 {[%clk 0:01:09]} 13. Bxf3 {[%clk 0:02:18]}  O-O {[%clk 0:01:08]} 14. Bf4 {[%clk 0:02:16]}  Rad8 {[%clk 0:01:00]} 15. Nd2 {[%clk 0:02:15]}  Bb6 {[%clk 0:00:54]} 16. Bh6 {[%clk 0:02:00]}  Rfe8 {[%clk 0:00:52]} 17. Ne4 {[%clk 0:02:00]}  Rxd1+ {[%clk 0:00:52]} 18. Rxd1 {[%clk 0:02:01]}  Re6 {[%clk 0:00:52]} 19. Ng3 {[%clk 0:01:31]}  Bc5 {[%clk 0:00:52]} 20. Nf5 {[%clk 0:01:19]}  Bf8 {[%clk 0:00:50]} 21. Bf4 {[%clk 0:01:10]}  Bc8 {[%clk 0:00:43]} 22. Bxc7 {[%clk 0:01:02]}  Ne5 {[%clk 0:00:31]} 23. Bd5 {[%clk 0:01:01]}  Re8 {[%clk 0:00:26]} 24. Ne3 {[%clk 0:00:57]}  Re7 {[%clk 0:00:19]} 25. Bb6 {[%clk 0:00:54]}  Rd7 {[%clk 0:00:19]} 26. h3 {[%clk 0:00:49]}  Ng6 {[%clk 0:00:12]} 27. Bb3 {[%clk 0:00:39]}  Nf4 {[%clk 0:00:10]} 28. Rxd7 {[%clk 0:00:38]}  Bxd7 {[%clk 0:00:11]} 29. Kf1 {[%clk 0:00:36]}  Nd3 {[%clk 0:00:10]} 30. Nd1 {[%clk 0:00:33]}  Bh6 {[%clk 0:00:08]} 31. Bc2 {[%clk 0:00:31]}  Nc1 {[%clk 0:00:08]} 32. a3 {[%clk 0:00:28]}  Be6 {[%clk 0:00:09]} 33. Ne3 {[%clk 0:00:24]}  Nb3 {[%clk 0:00:09]} 34. Ke2 {[%clk 0:00:23]}  Kf8 {[%clk 0:00:07]} 35. h4 {[%clk 0:00:18]}  Kg7 {[%clk 0:00:06]} 36. g3 {[%clk 0:00:19]}  Nc1+ {[%clk 0:00:05]} 37. Kd1 {[%clk 0:00:17]}  Nb3 {[%clk 0:00:05]} 38. f4 {[%clk 0:00:18]}  Na1 {[%clk 0:00:03]} 39. Bd3 {[%clk 0:00:17]}  Ba2 {[%clk 0:00:02]} 40. Kc1 {[%clk 0:00:16]}  Kf8 {[%clk 0:00:02]} 41. Bc2 {[%clk 0:00:15]}  Nb3+ {[%clk 0:00:02]} 42. Bxb3 {[%clk 0:00:15]}  Bxb3 {[%clk 0:00:02]} 43. Kd2 {[%clk 0:00:16]}  Kg8 {[%clk 0:00:02]} 44. Nf5 {[%clk 0:00:17]}  Bf8 {[%clk 0:00:02]} 45. Bd8 {[%clk 0:00:17]} 1-0


[Site "https://www.chess.com"]

[Event "Titled Tuesday Blitz March 22 Early 2022"]
[White "Hua, Lefong"]
[Black "Reprintsev, Alexander"]
[WhiteFideId "2602253"]
[BlackFideId "14100541"]
[WhiteElo "2587"]
[BlackElo "2108"]
[Result "0-1"]
[Round "06"]
[TimeControl "180+1"]
[Date "2022.03.22"]
[WhiteClock "0:00:38"]
[BlackClock "0:01:20"]

1. d4 {[%clk 0:03:00]}  d5 {[%clk 0:02:55]} 2. c4 {[%clk 0:03:01]}  e5 {[%clk 0:02:54]} 3. e3 {[%clk 0:03:00]}  exd4 {[%clk 0:02:54]} 4. Qxd4 {[%clk 0:03:00]}  Nf6 {[%clk 0:02:52]} 5. cxd5 {[%clk 0:02:59]}  Qxd5 {[%clk 0:02:51]} 6. Qxd5 {[%clk 0:02:59]}  Nxd5 {[%clk 0:02:51]} 7. a3 {[%clk 0:03:00]}  Bg4 {[%clk 0:02:41]} 8. Nf3 {[%clk 0:02:57]}  Bxf3 {[%clk 0:02:41]} 9. gxf3 {[%clk 0:02:58]}  Nc6 {[%clk 0:02:41]} 10. Bc4 {[%clk 0:02:52]}  Nb6 {[%clk 0:02:40]} 11. Bb5 {[%clk 0:02:47]}  O-O-O {[%clk 0:02:38]} 12. Bxc6 {[%clk 0:02:47]}  bxc6 {[%clk 0:02:38]} 13. Nc3 {[%clk 0:02:45]}  Be7 {[%clk 0:02:37]} 14. Ke2 {[%clk 0:02:41]}  Bf6 {[%clk 0:02:36]} 15. Ne4 {[%clk 0:02:38]}  Be5 {[%clk 0:02:22]} 16. f4 {[%clk 0:02:37]}  Bd6 {[%clk 0:02:18]} 17. Nxd6+ {[%clk 0:02:31]}  cxd6 {[%clk 0:02:18]} 18. Bd2 {[%clk 0:02:30]}  g6 {[%clk 0:02:17]} 19. Rac1 {[%clk 0:02:28]}  Kd7 {[%clk 0:02:13]} 20. Rhd1 {[%clk 0:02:23]}  Rhe8 {[%clk 0:02:13]} 21. Kf3 {[%clk 0:02:15]}  Re6 {[%clk 0:02:13]} 22. Rc2 {[%clk 0:02:12]}  Rc8 {[%clk 0:02:07]} 23. Ba5 {[%clk 0:02:05]}  Nd5 {[%clk 0:02:04]} 24. e4 {[%clk 0:01:57]}  Nf6 {[%clk 0:02:04]} 25. e5 {[%clk 0:01:49]}  Nd5 {[%clk 0:02:03]} 26. exd6 {[%clk 0:01:47]}  Rxd6 {[%clk 0:02:01]} 27. Bc3 {[%clk 0:01:43]}  Nxc3 {[%clk 0:01:58]} 28. Rxd6+ {[%clk 0:01:42]}  Kxd6 {[%clk 0:01:58]} 29. Rxc3 {[%clk 0:01:42]}  c5 {[%clk 0:01:56]} 30. Rd3+ {[%clk 0:01:38]}  Kc6 {[%clk 0:01:55]} 31. f5 {[%clk 0:01:37]}  Rb8 {[%clk 0:01:51]} 32. fxg6 {[%clk 0:01:33]}  hxg6 {[%clk 0:01:48]} 33. b3 {[%clk 0:01:33]}  Rh8 {[%clk 0:01:47]} 34. Kg3 {[%clk 0:01:33]}  Rh5 {[%clk 0:01:47]} 35. h4 {[%clk 0:01:25]}  a5 {[%clk 0:01:46]} 36. a4 {[%clk 0:01:22]}  Rd5 {[%clk 0:01:39]} 37. Re3 {[%clk 0:01:11]}  Rd4 {[%clk 0:01:38]} 38. f3 {[%clk 0:01:03]}  Rb4 {[%clk 0:01:37]} 39. Re7 {[%clk 0:01:02]}  Rxb3 {[%clk 0:01:28]} 40. Rxf7 {[%clk 0:01:02]}  c4 {[%clk 0:01:28]} 41. Rf6+ {[%clk 0:00:56]}  Kd5 {[%clk 0:01:28]} 42. Kf2 {[%clk 0:00:51]}  Rb2+ {[%clk 0:01:26]} 43. Ke3 {[%clk 0:00:47]}  Rg2 {[%clk 0:01:25]} 44. Rb6 {[%clk 0:00:44]}  c3 {[%clk 0:01:24]} 45. Kd3 {[%clk 0:00:43]}  c2 {[%clk 0:01:24]} 46. Rb5+ {[%clk 0:00:39]}  Kc6 {[%clk 0:01:20]} 47. Rb8 {[%clk 0:00:38]}  Kc7 {[%clk 0:01:20]} 0-1


[Site "https://www.chess.com"]

[Event "Titled Tuesday Blitz March 22 Early 2022"]
[White "Janaszak, Dawid"]
[Black "Yeletsky, Ivan"]
[WhiteFideId "1119206"]
[BlackFideId "24180327"]
[WhiteElo "2199"]
[BlackElo "2303"]
[Result "0-1"]
[Round "06"]
[TimeControl "180+1"]
[Date "2022.03.22"]
[WhiteClock "0:00:10"]
[BlackClock "0:00:45"]

1. e4 {[%clk 0:03:00]}  d6 {[%clk 0:02:58]} 2. Nc3 {[%clk 0:03:00]}  g6 {[%clk 0:02:56]} 3. d4 {[%clk 0:03:00]}  Bg7 {[%clk 0:02:56]} 4. Bf4 {[%clk 0:02:56]}  Nc6 {[%clk 0:02:56]} 5. Bb5 {[%clk 0:02:53]}  a6 {[%clk 0:02:51]} 6. Bxc6+ {[%clk 0:02:51]}  bxc6 {[%clk 0:02:52]} 7. Nge2 {[%clk 0:02:46]}  f6 {[%clk 0:02:51]} 8. O-O {[%clk 0:02:40]}  e5 {[%clk 0:02:51]} 9. Be3 {[%clk 0:02:40]}  Nh6 {[%clk 0:02:50]} 10. h3 {[%clk 0:02:38]}  Rb8 {[%clk 0:02:42]} 11. Rb1 {[%clk 0:02:37]}  O-O {[%clk 0:02:41]} 12. Qd2 {[%clk 0:02:34]}  Nf7 {[%clk 0:02:39]} 13. f4 {[%clk 0:02:34]}  f5 {[%clk 0:02:22]} 14. dxe5 {[%clk 0:02:26]}  dxe5 {[%clk 0:02:21]} 15. Qxd8 {[%clk 0:02:05]}  Rxd8 {[%clk 0:02:22]} 16. b3 {[%clk 0:01:48]}  Re8 {[%clk 0:02:10]} 17. fxe5 {[%clk 0:01:09]}  Bxe5 {[%clk 0:02:03]} 18. Bf4 {[%clk 0:00:37]}  Bg7 {[%clk 0:01:54]} 19. Bxc7 {[%clk 0:00:30]}  Rb7 {[%clk 0:01:54]} 20. Bf4 {[%clk 0:00:26]}  fxe4 {[%clk 0:01:50]} 21. Na4 {[%clk 0:00:26]}  h5 {[%clk 0:01:31]} 22. Rbd1 {[%clk 0:00:26]}  Rbe7 {[%clk 0:01:06]} 23. c4 {[%clk 0:00:24]}  e3 {[%clk 0:01:00]} 24. Nc5 {[%clk 0:00:21]}  g5 {[%clk 0:00:58]} 25. Bh2 {[%clk 0:00:17]}  g4 {[%clk 0:00:46]} 26. h4 {[%clk 0:00:17]}  g3 {[%clk 0:00:46]} 27. Bxg3 {[%clk 0:00:15]}  Bg4 {[%clk 0:00:47]} 28. Rfe1 {[%clk 0:00:15]}  Nh6 {[%clk 0:00:48]} 29. Rd6 {[%clk 0:00:14]}  Nf5 {[%clk 0:00:48]} 30. Rxc6 {[%clk 0:00:13]}  Bxe2 {[%clk 0:00:45]} 31. Rxe2 {[%clk 0:00:11]}  Nxg3 {[%clk 0:00:45]} 32. Re1 {[%clk 0:00:12]}  Bc3 {[%clk 0:00:45]} 33. Rg6+ {[%clk 0:00:09]}  Kh7 {[%clk 0:00:45]} 34. Rxg3 {[%clk 0:00:10]}  Bxe1 {[%clk 0:00:45]} 35. Rg5 {[%clk 0:00:10]}  e2 {[%clk 0:00:45]} 0-1


[Site "https://www.chess.com"]

[Event "Titled Tuesday Blitz March 22 Early 2022"]
[White "Khamzin, Olzhas"]
[Black "Molina, Roberto Junio Brito"]
[WhiteFideId "13701690"]
[BlackFideId "2109450"]
[WhiteElo "2194"]
[BlackElo "2432"]
[Result "1/2-1/2"]
[Round "06"]
[TimeControl "180+1"]
[Date "2022.03.22"]
[WhiteClock "0:00:25"]
[BlackClock "0:00:15"]

1. d4 {[%clk 0:02:53]}  c6 {[%clk 0:03:00]} 2. Nc3 {[%clk 0:02:54]}  d5 {[%clk 0:03:01]} 3. Bg5 {[%clk 0:02:54]}  Qb6 {[%clk 0:03:01]} 4. Na4 {[%clk 0:02:53]}  Qa5+ {[%clk 0:03:00]} 5. c3 {[%clk 0:02:54]}  Nd7 {[%clk 0:02:59]} 6. Nf3 {[%clk 0:02:52]}  b5 {[%clk 0:02:59]} 7. Nc5 {[%clk 0:02:52]}  Nxc5 {[%clk 0:02:59]} 8. dxc5 {[%clk 0:02:53]}  Qc7 {[%clk 0:02:59]} 9. Bh4 {[%clk 0:02:51]}  e5 {[%clk 0:02:58]} 10. Bg3 {[%clk 0:02:50]}  f6 {[%clk 0:02:58]} 11. b4 {[%clk 0:02:49]}  Ne7 {[%clk 0:02:50]} 12. h3 {[%clk 0:02:46]}  Ng6 {[%clk 0:02:43]} 13. a4 {[%clk 0:02:44]}  bxa4 {[%clk 0:02:42]} 14. Qxa4 {[%clk 0:02:43]}  Be7 {[%clk 0:02:38]} 15. e3 {[%clk 0:02:40]}  O-O {[%clk 0:02:38]} 16. Bd3 {[%clk 0:02:36]}  f5 {[%clk 0:02:37]} 17. Bc2 {[%clk 0:02:26]}  f4 {[%clk 0:02:35]} 18. exf4 {[%clk 0:02:27]}  Nxf4 {[%clk 0:02:36]} 19. Bxf4 {[%clk 0:02:22]}  Rxf4 {[%clk 0:02:35]} 20. Qa5 {[%clk 0:02:13]}  Qd7 {[%clk 0:02:20]} 21. Bb3 {[%clk 0:01:51]}  Re4+ {[%clk 0:02:08]} 22. Kf1 {[%clk 0:01:51]}  Bf6 {[%clk 0:02:05]} 23. Rd1 {[%clk 0:01:48]}  Rf4 {[%clk 0:01:43]} 24. b5 {[%clk 0:01:45]}  Bb7 {[%clk 0:01:38]} 25. Bxd5+ {[%clk 0:01:30]}  cxd5 {[%clk 0:01:36]} 26. c6 {[%clk 0:01:31]}  Qf7 {[%clk 0:01:24]} 27. cxb7 {[%clk 0:01:16]}  Qxb7 {[%clk 0:01:25]} 28. Qa2 {[%clk 0:01:11]}  Qxb5+ {[%clk 0:01:21]} 29. Kg1 {[%clk 0:01:11]}  Rc4 {[%clk 0:01:20]} 30. Kh2 {[%clk 0:01:00]}  e4 {[%clk 0:01:16]} 31. Nd2 {[%clk 0:00:59]}  Be5+ {[%clk 0:01:08]} 32. g3 {[%clk 0:00:58]}  Ra4 {[%clk 0:01:03]} 33. Qc2 {[%clk 0:00:51]}  Rf8 {[%clk 0:00:27]} 34. Rhf1 {[%clk 0:00:44]}  Ra3 {[%clk 0:00:27]} 35. c4 {[%clk 0:00:41]}  Qc5 {[%clk 0:00:20]} 36. Nb1 {[%clk 0:00:30]}  Raf3 {[%clk 0:00:14]} 37. Kg2 {[%clk 0:00:22]}  Qxc4 {[%clk 0:00:04]} 38. Qxc4 {[%clk 0:00:22]}  dxc4 {[%clk 0:00:05]} 39. Nd2 {[%clk 0:00:23]}  R3f7 {[%clk 0:00:05]} 40. Nxc4 {[%clk 0:00:23]}  Bc7 {[%clk 0:00:05]} 41. Ra1 {[%clk 0:00:23]}  Bb8 {[%clk 0:00:04]} 42. Ne3 {[%clk 0:00:23]}  Re8 {[%clk 0:00:04]} 43. Ra6 {[%clk 0:00:22]}  Be5 {[%clk 0:00:04]} 44. Rb1 {[%clk 0:00:22]}  Bd4 {[%clk 0:00:05]} 45. Re1 {[%clk 0:00:20]}  Ree7 {[%clk 0:00:04]} 46. Ra4 {[%clk 0:00:20]}  Bxe3 {[%clk 0:00:04]} 47. Rxe3 {[%clk 0:00:20]}  g6 {[%clk 0:00:05]} 48. Raxe4 {[%clk 0:00:20]}  Rxe4 {[%clk 0:00:06]} 49. Rxe4 {[%clk 0:00:21]}  Kg7 {[%clk 0:00:06]} 50. Ra4 {[%clk 0:00:21]}  Kf6 {[%clk 0:00:07]} 51. f4 {[%clk 0:00:22]}  Ke6 {[%clk 0:00:07]} 52. Kf3 {[%clk 0:00:23]}  Kd6 {[%clk 0:00:08]} 53. Ke4 {[%clk 0:00:23]}  Kc5 {[%clk 0:00:08]} 54. g4 {[%clk 0:00:24]}  Re7+ {[%clk 0:00:09]} 55. Kf3 {[%clk 0:00:24]}  Kb5 {[%clk 0:00:10]} 56. Ra1 {[%clk 0:00:24]}  a5 {[%clk 0:00:10]} 57. f5 {[%clk 0:00:24]}  gxf5 {[%clk 0:00:11]} 58. gxf5 {[%clk 0:00:25]}  a4 {[%clk 0:00:12]} 59. Kf4 {[%clk 0:00:25]}  Kb4 {[%clk 0:00:12]} 60. f6 {[%clk 0:00:26]}  Re2 {[%clk 0:00:12]} 61. Kf5 {[%clk 0:00:26]}  Rf2+ {[%clk 0:00:12]} 62. Ke6 {[%clk 0:00:26]}  a3 {[%clk 0:00:13]} 63. Kf7 {[%clk 0:00:26]}  Re2 {[%clk 0:00:13]} 64. Kf8 {[%clk 0:00:26]}  Rf2 {[%clk 0:00:13]} 65. f7 {[%clk 0:00:26]}  Kb3 {[%clk 0:00:14]} 66. Rxa3+ {[%clk 0:00:26]}  Kxa3 {[%clk 0:00:14]} 67. Kg7 {[%clk 0:00:27]}  Rg2+ {[%clk 0:00:14]} 68. Kxh7 {[%clk 0:00:28]}  Rf2 {[%clk 0:00:15]} 69. Kg7 {[%clk 0:00:28]}  Rg2+ {[%clk 0:00:15]} 70. Kh7 {[%clk 0:00:28]}  Rf2 {[%clk 0:00:15]} 71. Kg7 {[%clk 0:00:27]}  Rg2+ {[%clk 0:00:15]} 72. Kh7 {[%clk 0:00:25]} 1/2-1/2


[Site "https://www.chess.com"]

[Event "Titled Tuesday Blitz March 22 Early 2022"]
[White "Koridze, Lile"]
[Black "Pires, Marcos Vinicius Torsani"]
[WhiteFideId "13612514"]
[BlackFideId "2118939"]
[WhiteElo "1999"]
[BlackElo "2273"]
[Result "1-0"]
[Round "06"]
[TimeControl "180+1"]
[Date "2022.03.22"]
[WhiteClock "0:01:13"]
[BlackClock "0:00:02"]

1. d4 {[%clk 0:02:57]}  Nf6 {[%clk 0:02:57]} 2. c4 {[%clk 0:02:57]}  g6 {[%clk 0:02:56]} 3. Nc3 {[%clk 0:02:57]}  Bg7 {[%clk 0:02:57]} 4. e4 {[%clk 0:02:57]}  d6 {[%clk 0:02:56]} 5. Nf3 {[%clk 0:02:58]}  O-O {[%clk 0:02:57]} 6. Be2 {[%clk 0:02:58]}  c5 {[%clk 0:02:57]} 7. O-O {[%clk 0:02:58]}  cxd4 {[%clk 0:02:55]} 8. Nxd4 {[%clk 0:02:59]}  Nc6 {[%clk 0:02:55]} 9. Be3 {[%clk 0:02:59]}  Bd7 {[%clk 0:02:54]} 10. f3 {[%clk 0:02:58]}  Nxd4 {[%clk 0:02:53]} 11. Bxd4 {[%clk 0:02:59]}  Bc6 {[%clk 0:02:54]} 12. Qd2 {[%clk 0:02:58]}  a5 {[%clk 0:02:54]} 13. Rad1 {[%clk 0:02:57]}  a4 {[%clk 0:02:51]} 14. b4 {[%clk 0:02:53]}  axb3 {[%clk 0:02:41]} 15. axb3 {[%clk 0:02:53]}  Nd7 {[%clk 0:02:40]} 16. b4 {[%clk 0:02:48]}  Bxd4+ {[%clk 0:01:57]} 17. Qxd4 {[%clk 0:02:46]}  b6 {[%clk 0:01:44]} 18. Ra1 {[%clk 0:02:40]}  Qc7 {[%clk 0:01:41]} 19. Nd5 {[%clk 0:02:28]}  Bxd5 {[%clk 0:01:41]} 20. cxd5 {[%clk 0:02:28]}  Rfc8 {[%clk 0:01:25]} 21. Bb5 {[%clk 0:02:25]}  Ne5 {[%clk 0:01:13]} 22. f4 {[%clk 0:02:18]}  Ng4 {[%clk 0:01:08]} 23. Bc6 {[%clk 0:02:12]}  Rxa1 {[%clk 0:00:52]} 24. Rxa1 {[%clk 0:02:11]}  e5 {[%clk 0:00:52]} 25. Qd1 {[%clk 0:01:53]}  Ne3 {[%clk 0:00:52]} 26. Qf3 {[%clk 0:01:53]}  exf4 {[%clk 0:00:52]} 27. Qxf4 {[%clk 0:01:53]}  Nc4 {[%clk 0:00:52]} 28. Rc1 {[%clk 0:01:40]}  Ne5 {[%clk 0:00:52]} 29. Qf6 {[%clk 0:01:37]}  b5 {[%clk 0:00:47]} 30. Kh1 {[%clk 0:01:26]}  Qb8 {[%clk 0:00:36]} 31. h3 {[%clk 0:01:25]}  h5 {[%clk 0:00:35]} 32. Qe7 {[%clk 0:01:21]}  Nd3 {[%clk 0:00:25]} 33. Rf1 {[%clk 0:01:20]}  Ne5 {[%clk 0:00:24]} 34. Rf6 {[%clk 0:01:20]}  Rd8 {[%clk 0:00:15]} 35. Bxb5 {[%clk 0:01:20]}  Qxb5 {[%clk 0:00:12]} 36. Qxd8+ {[%clk 0:01:20]}  Kg7 {[%clk 0:00:13]} 37. Qxd6 {[%clk 0:01:16]}  Nd3 {[%clk 0:00:08]} 38. Qe7 {[%clk 0:01:14]}  Qxb4 {[%clk 0:00:03]} 39. Rxf7+ {[%clk 0:01:13]}  Kh6 {[%clk 0:00:02]} 40. Rh7# {[%clk 0:01:13]} 1-0


[Site "https://www.chess.com"]